[Event "WSTCC-65 2024"]
[Site "Krakow"]
[Date "2024.07.02"]
[Round "1.13"]
[White "Vilerte, Tamara"]
[Black "Binham, Timothy F."]
[Result "1/2-1/2"]
[ECO "A04"]
[WhiteElo "1971"]
[BlackElo "2276"]
[Annotator "TA"]
[PlyCount "68"]
[EventDate "2024.07.01"]
[EventType "team-tourn"]
[EventCountry "POL"]
[SourceTitle "playchess.com"]
[Source "ChessBase"]
[SourceQuality "1"]
[TimeControl "40/5400+30:1800+30"]

{[%evp 9,67,-24,15,-3,-7,-22,-11,-37,-31,-50,-39,-54,-51,-62,-53,-77,-41,-38,-31,-58,-24,-26,0,-12,28,30,26,0,2,0,18,0,6,0,0,0,-1,0,7,0,4,7,5,5,19,8,11,3,12,13,14,7,7,0,31,33,10,0,0,0]} 1. Nf3 {[%emt 0:00:05]} c5 {[%emt 0:00:35]} 2. b3 {[%emt 0:00:44]} Nc6 {[%emt 0:02:05]} 3. Bb2 {[%emt 0:00:58]} d6 {[%emt 0:01:01]} 4. e3 {[%emt 0:04:36]} e5 {[%emt 0:01:01]} 5. d3 {[%emt 0:09:25]} Nf6 {[%emt 0:02:05]} 6. Be2 {[%emt 0:02:14]} g6 {[%emt 0:03:57]} 7. O-O {[%emt 0:02:40]} Bg7 {[%emt 0:00:31]} 8. Nbd2 {[%emt 0:02:11]} O-O {[%emt 0:00:24]} 9. h3 {[%emt 0:08:02]} Re8 {[%emt 0:06:41]} 10. Nh2 {[%emt 0:14:14]} d5 {[%emt 0:06:45]} 11. e4 {[%emt 0:13:59]} Be6 {[%emt 0:14:51]} 12. Rb1 {[%emt 0:04:34]} Qd7 {[%emt 0:01:02]} 13. Ng4 {[%emt 0:06:07]} Nxg4 {[%emt 0:08:19]} 14. hxg4 {[%emt 0:06:15]} Nd4 15. exd5 Qxd5 {[%emt 0:04:09]} 16. Ne4 {[%emt 0:03:55]} Nxe2+ {[%emt 0:09:40]} 17. Qxe2 {[%emt 0:00:06]} h6 {[%emt 0:05:31]} 18. g5 {[%emt 0:04:39]} hxg5 {[%emt 0:00:42]} 19. Nxg5 {[%emt 0:00:16]} Bd7 {[%emt 0:00:42][%cal Oe5e4,Be6d7,Bd7c6,Bc6d5][%mdl 32]} 20. Qe4 {[%emt 0:02:09]} Bc6 {[%emt 0:01:07]} 21. f3 {[%emt 0:01:07]} (21. Qxd5 {simplifies} Bxd5 22. Rfe1 f6 23. Ne4) 21... f6 {[%emt 0:04:49]} 22. Qxd5+ {[%emt 0:01:45]} Bxd5 {[%emt 0:00:02]} 23. Ne4 {[%emt 0:00:13]} b6 {[%emt 0:01:14]} 24. a4 {[%emt 0:00:21]} Rad8 {[%emt 0:01:01]} 25. Rbe1 {[%emt 0:00:49]} Kf7 {[%emt 0:08:56]} 26. Kf2 {[%emt 0:00:41]} g5 {[%emt 0:03:03]} 27. g4 {[%emt 0:01:43]} Kg6 {[%emt 0:01:45]} 28. Bc1 {[%emt 0:02:26]} Rh8 {[%emt 0:00:58]} 29. Rh1 {[%emt 0:00:14] Inhibits Rh2+.} Rh4 {[%emt 0:00:31]} 30. Kg2 {[%emt 0:03:20]} (30. Rxh4 {simplifies} gxh4 31. Kg2 Rh8 32. Kh3) 30... Rdh8 {[%emt 0:00:14]} 31. Be3 {[%emt 0:00:16]} f5 {[%emt 0:04:20]} 32. gxf5+ {[%emt 0:00:39]} (32. Nxg5 $2 {perishes.} Rxh1 (32... Rxg4+ $2 33. Kf2 $19) (32... fxg4 33. Rxh4 Rxh4 34. Ne4 $17) 33. Rxh1 (33. gxf5+ $2 Kxf5 34. Rxh1 Rxh1 $19) 33... Rxh1 (33... fxg4 34. Rxh8 gxf3+ 35. Kf2 $11) 34. gxf5+ Kxf5 35. Kxh1 Bh6 $19) 32... Kxf5 {[%emt 0:00:03]} 33. Ng3+ {[%emt 0:02:49]} Kg6 {[%emt 0:00:18] [#] Strongly threatening ...g4.} 34. Ne4 {[%emt 0:00:25]} Kf5 {[%emt 0:03:16] Weighted Error Value: White=0.09 (flawless) /Black=0.09 (flawless) .  Inaccurate:     	White=2     	Black=5      OK:         	White=9     	Black=12     Best:        	White=1     	---} 1/2-1/2

[Event "WSTCC-65 2024"]
[Site "Krakow"]
[Date "2024.07.02"]
[Round "1.13"]
[White "McGill, Derek"]
[Black "Shilov, Sergej"]
[Result "0-1"]
[ECO "A10"]
[WhiteElo "1827"]
[BlackElo "2143"]
[Annotator "NA RC"]
[PlyCount "82"]
[EventDate "2024.07.01"]
[EventType "team-tourn"]
[EventCountry "POL"]
[SourceTitle "playchess.com"]
[Source "ChessBase"]
[SourceQuality "1"]
[TimeControl "40/5400+30:1800+30"]

1. c4 {[%emt 0:00:04]} d6 {[%emt 0:00:22]} 2. g3 {[%emt 0:00:36]} e5 {[%emt 0:01:12]} 3. Bg2 {[%emt 0:01:17]} g6 {[%emt 0:00:59]} 4. Nc3 {[%emt 0:00:29]} Bg7 {[%emt 0:00:16]} 5. d3 {[%emt 0:01:14]} f5 {[%emt 0:02:30]} 6. e4 {[%emt 0:04:39]} Nc6 {[%emt 0:03:08]} 7. Nge2 {[%emt 0:01:05]} Nf6 {[%emt 0:01:26]} 8. O-O {[%emt 0:00:32]} O-O {[%emt 0:00:48]} 9. h3 {[%emt 0:06:47]} Be6 {[%emt 0:06:30]} 10. Kh2 {[%emt 0:05:44]} fxe4 {[%emt 0:04:29]} 11. Nxe4 {[%emt 0:00:59]} Nxe4 {[%emt 0:02:12]} 12. Bxe4 {[%emt 0:00:46]} Qd7 {[%emt 0:00:46]} 13. Bg2 {[%emt 0:07:45]} d5 {[%emt 0:04:43]} 14. Qb3 {[%emt 0:15:35]} dxc4 {[%emt 0:11:49]} 15. dxc4 {[%emt 0:11:01]} Na5 {[%emt 0:04:52]} 16. Qb5 {[%emt 0:14:06]} Qxb5 {[%emt 0:02:06]} 17. cxb5 {[%emt 0:00:03]} Bc4 {[%emt 0:00:26]} 18. Bd2 {[%emt 0:07:54]} Bxe2 {[%emt 0:01:12]} 19. Bxa5 {[%emt 0:02:10]} Bxb5 {[%emt 0:02:13]} 20. Bxb7 {[%emt 0:03:12]} Rad8 {[%emt 0:06:52]} 21. Kg1 {[%emt 0:02:35]} Bxf1 {[%emt 0:03:52]} 22. Rxf1 {[%emt 0:00:03]} e4 {[%emt 0:02:30]} 23. Bc3 {[%emt 0:04:00]} Bxc3 {[%emt 0:02:00]} 24. bxc3 {[%emt 0:00:02]} e3 {[%emt 0:00:33]} 25. fxe3 {[%emt 0:00:47]} Rxf1+ {[%emt 0:00:22]} 26. Kxf1 {[%emt 0:00:01]} Rd2 {[%emt 0:00:05]} 27. e4 {[%emt 0:00:33]} Kg7 {[%emt 0:00:18]} 28. Bd5 {[%emt 0:00:19]} Kf6 {[%emt 0:00:51]} 29. h4 {[%emt 0:01:01]} Rc2 {[%emt 0:00:56]} 30. Ke1 {[%emt 0:00:54]} h6 {[%emt 0:00:40]} 31. Kf1 {[%emt 0:04:19]} Ke5 {[%emt 0:00:53]} 32. Kg1 {[%emt 0:00:19]} g5 {[%emt 0:01:28]} 33. hxg5 {[%emt 0:00:32]} hxg5 {[%emt 0:00:01]} 34. Kf1 {[%emt 0:00:25]} Rxc3 {[%emt 0:00:36]} 35. Kf2 {[%emt 0:01:12]} c6 {[%emt 0:00:19]} 36. Bf7 {[%emt 0:01:00]} Kxe4 {[%emt 0:00:33]} 37. Bg6+ {[%emt 0:00:13]} Kd4 {[%emt 0:00:12]} 38. Bh7 {[%emt 0:00:28]} c5 {[%emt 0:00:30]} 39. Kg2 {[%emt 0:00:23]} Ra3 {[%emt 0:01:30]} 40. Bb1 {[%emt 0:00:45]} Ke3 {[%emt 0:01:00]} 41. Kh3 {[%emt 0:31:14]} Kf2 {[%emt 0:30:31]} 0-1

[Event "WSTCC-65 2024"]
[Site "Krakow"]
[Date "2024.07.02"]
[Round "1.14"]
[White "Plachetka, Jan"]
[Black "Kasperek, Wieslaw"]
[Result "0-1"]
[ECO "A39"]
[WhiteElo "2289"]
[BlackElo "2009"]
[Annotator "TA"]
[PlyCount "64"]
[EventDate "2024.07.01"]
[EventType "team-tourn"]
[EventCountry "POL"]
[SourceTitle "playchess.com"]
[Source "ChessBase"]
[SourceQuality "1"]
[TimeControl "40/5400+30:1800+30"]

{[%evp 20,64,25,13,11,13,19,19,35,39,42,37,52,33,44,31,162,70,111,89,119,62,170,80,78,80,83,17,27,0,50,-9,-14,-162,-162,-208,-175,-158,-165,-162,-15,-274,-247,-491,-449,-459,-282]} 1. c4 {[%emt 0:00:14]} c5 {[%emt 0:00:12]} 2. Nf3 {[%emt 0:00:19]} Nc6 {[%emt 0:00:13]} 3. g3 {[%emt 0:00:20]} g6 {[%emt 0:00:17]} 4. Bg2 {[%emt 0:00:14]} Bg7 {[%emt 0:00:08]} 5. Nc3 {[%emt 0:00:23]} Nf6 {[%emt 0:00:21]} 6. O-O {[%emt 0:00:56]} O-O {[%emt 0:00:17]} 7. d4 {[%emt 0:00:18]} cxd4 8. Nxd4 Qb6 9. Nb3 d6 10. Be3 Qd8 11. Rc1 Be6 12. Nd5 Rc8 {[%emt 0:20:30]} 13. Bg5 {[%emt 0:32:12]} Bxd5 {[%emt 0:06:22] Die Stellung ist ausgeglichen.} 14. cxd5 {[%emt 0:00:12]} Ne5 {[%emt 0:00:10]} 15. Qd4 {[%emt 0:03:58]} a6 {[%emt 0:05:57]} 16. Bh3 {[%emt 0:04:30] Ein starkes Läuferpaar.} Rxc1 {[%emt 0:04:09]} 17. Rxc1 {[%emt 0:00:22]} Nfd7 {[%emt 0:00:28]} (17... Qe8 $14) 18. Qb4 {[%emt 0:06:50]} (18. Qa7 $18) 18... b5 {[%emt 0:00:21]} 19. Na5 {[%emt 0:02:13] Verhindert Nc4.} h6 {[%emt 0:14:44]} 20. Be3 {[%emt 0:06:34]} (20. Nc6 $16 Nxc6 21. dxc6) 20... Nf6 {[%emt 0:04:55] [#]} (20... Nb6 $1 $14 21. Bxb6 Qxb6) 21. Qd2 {[%emt 0:02:57]} (21. Rc8 $1 $18 {[%cal Rc8d8] bietet bessere Gewinnchancen.} Qxc8 (21... Nxd5 $2 22. Qd2 $18) 22. Bxc8 Rxc8 23. Qd2) 21... Ne4 $16 {[%emt 0:05:46] [#]} (21... Nxd5 $2 22. Rc8 Qxc8 23. Bxc8 Nxe3 24. Bxa6 $18) 22. Qe1 {[%emt 0:01:55]} f5 {[%emt 0:00:20]} 23. f3 {[%emt 0:01:32]} (23. Qb4 $16) 23... Nf6 $1 $11 {[%emt 0:00:19]} 24. Qd2 {[%emt 0:01:51][%cal Oa5c6]} Kh7 {[%emt 0:00:30]} (24... Qd7 $11) 25. Nc6 {[%emt 0:01:58]} ({Vorzuziehen ist} 25. Bg2 $14) 25... Qd7 {[%emt 0:01:24] Weiss muss nun ...Nc4 beachten.} 26. Bf4 {[%emt 0:02:11]} (26. Bd4 $11 {und Weiss steht sicher.}) 26... Nc4 $19 {[%emt 0:01:19]} 27. Qd3 {[%emt 0:04:06]} (27. Qd1 $142 e5 28. Bd2 (28. b3 $2 Nb2 $19)) 27... Nxb2 {[%emt 0:01:05]} 28. Qb3 {[%emt 0:00:04]} Nc4 {[%emt 0:00:13]} 29. e4 {[%emt 0:01:20]} Kh8 {[%emt 0:01:37]} (29... Qc7 $19 30. a4 (30. exf5 $2 {verliert.} Nxd5 31. Rxc4 bxc4 $19) 30... e5 (30... fxe4 31. axb5 Qb6+ 32. Kh1 $11)) 30. Qd3 {[%emt 0:01:49][%mdl 8192]} (30. a4 $11 {und Weiss muss sich keine Sorgen machen.}) 30... fxe4 {[%emt 0:01:31]} 31. Bxd7 {[%emt 0:00:56]} (31. Qxc4 {ist wohl besser.} Qxh3 32. Qf1 Qxf1+ 33. Rxf1) 31... exd3 {[%emt 0:00:10]} 32. Be6 {[%emt 0:00:04]} g5 {[%emt 0:01:08] Gewichteter Fehlerwert: Weiß=0.73/Schwarz=0.34.  Verlustzug:     	Weiß=1     	---        Fehler:       	Weiß=8     	Schwarz=4     Ungenau:       	Weiß=1     	Schwarz=3     OK:         	Weiß=7     	Schwarz=6     Bester:       	---       	Schwarz=3     Stark:        	---       	Schwarz=1} 0-1

[Event "WSTCC-65 2024"]
[Site "Krakow"]
[Date "2024.07.02"]
[Round "1.14"]
[White "Westerinen, Heikki M.J."]
[Black "Goldmane, Astra"]
[Result "1-0"]
[ECO "B28"]
[WhiteElo "2221"]
[BlackElo "1989"]
[Annotator "TA"]
[PlyCount "55"]
[EventDate "2024.07.01"]
[EventType "team-tourn"]
[EventCountry "POL"]
[SourceTitle "playchess.com"]
[Source "ChessBase"]
[SourceQuality "1"]
[TimeControl "40/5400+30:1800+30"]

{[%evp 19,55,26,24,4,36,16,27,0,45,35,68,39,105,58,63,54,77,54,50,44,195,207,204,197,214,200,215,183,222,214,213,207,216,207,214,213,365,360]} 1. e4 {[%emt 0:00:05]} c5 {[%emt 0:00:08]} 2. Nf3 {[%emt 0:00:37]} a6 {[%emt 0:00:10]} 3. c3 {[%emt 0:00:52]} d5 {[%emt 0:00:13]} 4. exd5 {[%emt 0:00:26]} Qxd5 {[%emt 0:00:06]} 5. d4 {[%emt 0:00:32]} Nc6 {[%emt 0:02:48]} 6. Be2 {[%emt 0:03:08]} cxd4 {[%emt 0:01:01]} 7. cxd4 {[%emt 0:00:43]} e6 {[%emt 0:10:24]} 8. O-O {[%emt 0:02:59]} Nf6 {[%emt 0:02:07]} 9. Nc3 {[%emt 0:01:32]} Qd8 {[%emt 0:01:05]} 10. Be3 {[%emt 0:08:24]} Bd6 {[%emt 0:01:08]} 11. Qd2 {[%emt 0:03:08]} Nb4 {[%emt 0:23:10]} 12. Rac1 {[%emt 0:12:53]} Nbd5 {[%emt 0:04:19]} 13. Bd3 {[%emt 0:05:41] White has an edge.} O-O {[%emt 0:01:42]} 14. Bg5 {[%emt 0:01:05]} Qb6 {[%emt 0:05:38]} 15. Bb1 {[%emt 0:04:14]} Qa7 {[%emt 0:11:15]} ({Black should try} 15... Bd7 $1 $14) 16. Rfe1 {[%emt 0:10:35]} ({White should play} 16. Qd3 $16 {Black must now prevent Nxd5.} g6 17. Ne5) 16... b5 $14 {[%emt 0:06:40][%cal Bb7b5,Bb5b4][%mdl 32]} 17. Ne5 {[%emt 0:06:03]} b4 {[%emt 0:10:34]} 18. Na4 {[%emt 0:08:22] White is more active.} Bd7 $1 {[%emt 0:07:27]} 19. Nc5 {[%emt 0:02:17] Hoping for Qd3.} Rab8 $2 {[%emt 0:06:31] [#] Loses the game.} (19... Rfc8 $14) 20. Ncxd7 $18 {[%emt 0:06:53]} Nxd7 {[%emt 0:00:17]} 21. Nc6 {[%emt 0:00:19][%csl LRa7,LRb8]} Qb6 {[%emt 0:00:19]} 22. Nxb8 $40 {[%emt 0:00:37][%mdl 128] White has strong attack.} Qxb8 {[%emt 0:00:01]} 23. Qd3 {[%emt 0:03:38][%csl Gb1][%cal Rd3h7] [#]} g6 {[%emt 0:01:13]} 24. g3 {[%emt 0:00:30]} ({But not} 24. Qxa6 $6 Bxh2+ 25. Kf1 Bf4 26. Bxf4 Qxf4 $16) 24... Qb7 {[%emt 0:01:42]} 25. Qc4 {[%emt 0:01:36]} N7b6 {[%emt 0:00:24]} 26. Qe2 {[%emt 0:02:41]} a5 {[%emt 0:01:55]} 27. Qb5 {[%emt 0:01:22][%cal Oc1c6] Threatens to win with Rc6!} Qa7 $2 {[%emt 0:00:55]} (27... Rb8 28. Be4 (28. Qxa5 Bf8 $18) 28... Kg7) 28. Rc6 {[%emt 0:00:52] Weighted Error Value: White=0.12 (very precise) /Black=0.36.  Mistake:       	White=1     	Black=3      Inaccurate:     	White=2     	Black=3      OK:         	White=9     	Black=3      Best:        	---       	Black=1      Strong:       	---       	Black=1} 1-0

[Event "WSTCC-65 2024"]
[Site "Krakow"]
[Date "2024.07.02"]
[Round "1.14"]
[White "Gasik, Piotr"]
[Black "Lohan, Martin"]
[Result "1-0"]
[ECO "A34"]
[WhiteElo "1954"]
[BlackElo "1826"]
[Annotator "NA RC"]
[PlyCount "79"]
[EventDate "2024.07.01"]
[EventType "team-tourn"]
[EventCountry "POL"]
[SourceTitle "playchess.com"]
[Source "ChessBase"]
[SourceQuality "1"]
[TimeControl "40/5400+30:1800+30"]

1. c4 {[%emt 0:00:02]} c5 {[%emt 0:01:00]} 2. Nc3 {[%emt 0:00:06]} g6 {[%emt 0:00:43]} 3. Nf3 {[%emt 0:00:07]} Bg7 {[%emt 0:00:14]} 4. d4 {[%emt 0:00:06]} cxd4 {[%emt 0:01:23]} 5. Nxd4 {[%emt 0:00:05]} Nc6 {[%emt 0:00:37]} 6. e3 {[%emt 0:00:08]} Nf6 {[%emt 0:03:01]} 7. Nc2 {[%emt 0:00:06]} O-O {[%emt 0:01:53]} 8. Be2 {[%emt 0:00:06]} d6 {[%emt 0:05:34]} 9. O-O {[%emt 0:00:08]} Bf5 {[%emt 0:02:30]} 10. Nd4 {[%emt 0:00:08]} Nxd4 {[%emt 0:00:17]} 11. exd4 {[%emt 0:00:38]} a6 {[%emt 0:16:40]} 12. Be3 {[%emt 0:02:32]} Rc8 {[%emt 0:04:34]} 13. h3 {[%emt 0:03:40]} Re8 {[%emt 0:06:20]} 14. Qb3 {[%emt 0:02:27]} Qc7 {[%emt 0:01:23]} 15. Rac1 {[%emt 0:02:54]} d5 {[%emt 0:08:49]} 16. cxd5 {[%emt 0:06:23]} Qd6 {[%emt 0:01:22]} 17. Qxb7 {[%emt 0:08:20]} Rb8 {[%emt 0:04:16]} 18. Qxa6 {[%emt 0:00:11]} Rxb2 {[%emt 0:00:12]} 19. Qxd6 {[%emt 0:01:09]} exd6 {[%emt 0:00:07]} 20. Bb5 {[%emt 0:00:51]} Bd7 {[%emt 0:04:04]} 21. Bxd7 {[%emt 0:05:21]} Nxd7 {[%emt 0:00:11]} 22. Rb1 {[%emt 0:00:02]} Rxb1 {[%emt 0:04:21]} 23. Rxb1 {[%emt 0:00:12]} Rc8 {[%emt 0:00:18]} 24. Rb7 {[%emt 0:05:24]} Nf6 {[%emt 0:03:20]} 25. Rb3 {[%emt 0:00:09]} Nd7 {[%emt 0:02:09]} 26. Ne4 {[%emt 0:06:54]} Bf8 {[%emt 0:00:28]} 27. Rb7 {[%emt 0:00:15]} Nb8 {[%emt 0:05:48]} 28. a4 {[%emt 0:08:21]} Na6 {[%emt 0:00:26]} 29. Rb6 {[%emt 0:00:09]} Ra8 {[%emt 0:00:55]} 30. Nc3 {[%emt 0:03:45]} Nc7 {[%emt 0:01:22]} 31. Kf1 {[%emt 0:02:16]} Ra5 {[%emt 0:02:12]} 32. Ke2 {[%emt 0:03:32]} Nxd5 {[%emt 0:01:38]} 33. Nxd5 {[%emt 0:00:06]} Rxd5 {[%emt 0:00:07]} 34. Rb5 {[%emt 0:00:08]} Rxb5 {[%emt 0:06:02]} 35. axb5 {[%emt 0:00:06]} Be7 {[%emt 0:00:22]} 36. Kd3 {[%emt 0:03:34]} d5 {[%emt 0:00:22]} 37. b6 {[%emt 0:00:26]} Bd6 {[%emt 0:00:08]} 38. g3 {[%emt 0:01:24]} Kf8 {[%emt 0:00:11]} 39. Bf4 {[%emt 0:00:13]} Ke7 {[%emt 0:00:02]} 40. b7 {[%emt 0:00:09]} 1-0

[Event "WSTCC-65 2024"]
[Site "Krakow"]
[Date "2024.07.02"]
[Round "1.15"]
[White "Ungure, Liga"]
[Black "Joentausta, Hannu"]
[Result "1/2-1/2"]
[ECO "B40"]
[WhiteElo "1970"]
[BlackElo "2102"]
[Annotator "NA RC"]
[PlyCount "74"]
[EventDate "2024.07.01"]
[EventType "team-tourn"]
[EventCountry "POL"]
[SourceTitle "playchess.com"]
[Source "ChessBase"]
[SourceQuality "1"]
[TimeControl "40/5400+30:1800+30"]

1. e4 {[%emt 0:00:04]} c5 {[%emt 0:00:07]} 2. Nf3 {[%emt 0:00:23]} e6 {[%emt 0:00:07]} 3. c3 {[%emt 0:00:09]} Nf6 {[%emt 0:00:26]} 4. e5 {[%emt 0:00:24]} Nd5 {[%emt 0:00:11]} 5. g3 {[%emt 0:00:34]} Be7 {[%emt 0:06:44]} 6. Bg2 {[%emt 0:01:19]} O-O {[%emt 0:00:21]} 7. O-O {[%emt 0:03:41]} d6 {[%emt 0:00:49]} 8. exd6 {[%emt 0:02:45]} Bxd6 {[%emt 0:02:05]} 9. d4 {[%emt 0:00:46]} Nc6 {[%emt 0:03:20]} 10. c4 {[%emt 0:10:29]} Nc7 {[%emt 0:02:37]} 11. Nc3 {[%emt 0:04:30]} cxd4 {[%emt 0:03:09]} 12. Nxd4 {[%emt 0:00:24]} Nxd4 {[%emt 0:11:06]} 13. Qxd4 {[%emt 0:00:09]} e5 {[%emt 0:23:41]} 14. Qd3 {[%emt 0:06:25]} Ne6 {[%emt 0:02:42]} 15. Rd1 {[%emt 0:04:10]} Nd4 {[%emt 0:02:19]} 16. Nb5 {[%emt 0:16:41]} Bf5 {[%emt 0:11:54]} 17. Be4 {[%emt 0:02:35]} Bxe4 {[%emt 0:01:20]} 18. Qxe4 {[%emt 0:00:04]} Nxb5 {[%emt 0:08:10]} 19. cxb5 {[%emt 0:00:03]} Qe7 {[%emt 0:03:06]} 20. Be3 {[%emt 0:02:30]} Rfc8 {[%emt 0:06:20]} 21. Rd5 {[%emt 0:02:29]} g6 {[%emt 0:04:13]} 22. Rad1 {[%emt 0:00:52]} Rd8 {[%emt 0:01:02]} 23. Qd3 {[%emt 0:08:02]} Bc7 {[%emt 0:00:56]} 24. Rd7 {[%emt 0:08:50]} Qe8 {[%emt 0:00:08]} 25. Bg5 {[%emt 0:02:39]} Rxd7 {[%emt 0:01:24]} 26. Qxd7 {[%emt 0:00:02]} Qxd7 {[%emt 0:00:13]} 27. Rxd7 {[%emt 0:00:02]} Rc8 {[%emt 0:00:11]} 28. Bf6 {[%emt 0:01:31]} Kf8 {[%emt 0:01:05]} 29. Kf1 {[%emt 0:03:26]} b6 {[%emt 0:01:16]} 30. Ke2 {[%emt 0:00:59]} Ke8 {[%emt 0:01:00]} 31. Re7+ {[%emt 0:01:06]} Kf8 {[%emt 0:00:02]} 32. Rd7 {[%emt 0:00:50]} Ke8 {[%emt 0:00:00]} 33. Re7+ {[%emt 0:02:38]} Kf8 {[%emt 0:00:03]} 34. Rd7 {[%emt 0:00:09]} Ke8 {[%emt 0:00:01]} 35. Re7+ {[%emt 0:00:05]} Kf8 36. Rd7 Ke8 37. Rd5 Kf8 1/2-1/2

[Event "WSTCC-65 2024"]
[Site "Krakow"]
[Date "2024.07.02"]
[Round "1.15"]
[White "Kusina, Jan"]
[Black "Lanc, Alois"]
[Result "0-1"]
[ECO "A53"]
[WhiteElo "1969"]
[BlackElo "2256"]
[Annotator "TA"]
[PlyCount "56"]
[EventDate "2024.07.01"]
[EventType "team-tourn"]
[EventCountry "POL"]
[SourceTitle "playchess.com"]
[Source "ChessBase"]
[SourceQuality "1"]
[TimeControl "40/5400+30:1800+30"]

{[%evp 12,56,30,0,0,0,2,-52,-41,-43,-39,-60,-42,-45,-45,-41,-10,-35,-19,-22,-8,-18,-22,-66,-66,-63,-43,-202,-216,-234,-219,-377,-383,-607,-596,-995,-979,-29985,-29986,-29986,-29987,-29989,-29990,-29995,-29996,-29996,-29990]} 1. d4 {[%emt 0:00:04]} Nf6 {[%emt 0:00:39]} 2. c4 {[%emt 0:00:15]} d6 {[%emt 0:00:23]} 3. Nc3 {[%emt 0:00:19]} e5 {[%emt 0:00:11]} 4. dxe5 {[%emt 0:01:04]} dxe5 {[%emt 0:00:02]} 5. Qxd8+ {[%emt 0:00:27]} Kxd8 {[%emt 0:00:02]} 6. Nf3 {[%emt 0:01:58]} Nfd7 {[%emt 0:04:05]} 7. Bd2 {[%emt 0:03:22]} f6 {[%emt 0:01:27]} 8. O-O-O {[%emt 0:03:34]} c6 {[%emt 0:02:48]} 9. Ne4 {[%emt 0:06:40]} (9. g3 $11) 9... Kc7 $15 {[%emt 0:02:42] Schwarz steht etwas besser.} 10. Bc3 {[%emt 0:01:42]} a5 {[%emt 0:01:38]} 11. e3 {[%emt 0:02:07]} b6 {[%emt 0:12:11]} 12. h4 {[%emt 0:05:15]} Na6 {[%emt 0:03:41]} 13. h5 {[%emt 0:01:39][%cal Oh5h6]} Be7 {[%emt 0:02:09]} 14. Nh4 {[%emt 0:12:03]} Ndc5 {[%emt 0:21:02]} 15. Ng3 {[%emt 0:05:59]} Re8 {[%emt 0:03:11]} 16. Be2 {[%emt 0:04:13]} Bf8 {[%emt 0:04:24]} 17. Ngf5 {[%emt 0:18:48]} Be6 {[%emt 0:08:10]} 18. g4 {[%emt 0:09:31]} Reb8 {[%emt 0:07:26] Droht stark ...Nb4.} 19. f3 $2 {[%emt 0:03:44] Der Zug kostet die Partie für Weiß.} (19. a3 $15) 19... Nb4 $19 {[%emt 0:00:23]} 20. Kb1 {[%emt 0:01:20] [#]} b5 $1 {[%emt 0:00:31]} 21. a3 $2 {[%emt 0:01:03]} (21. e4 {war einen Versuch wert.}) 21... bxc4 {[%emt 0:07:28][%cal Oc5a4] ...Na4! wäre nun fies.} ({Schwächer ist} 21... Bxc4 22. axb4 axb4 (22... Bxe2 23. bxc5 b4 24. Bd2 $15) 23. Bxc4 bxc4 24. Bd2 $17 (24. Be1 $2 c3 $19)) 22. axb4 {[%emt 0:01:54]} (22. Rc1 $142) 22... axb4 {[%emt 0:00:03]} 23. Be1 {[%emt 0:06:07]} c3 {[%emt 0:02:59] ( -> ...Ra2)} 24. Bd3 {[%emt 0:03:44]} Ra2 {[%emt 0:02:44] Schwarz setzt Matt.} 25. Rh2 {[%emt 0:01:27]} Rba8 {[%emt 0:00:51]} 26. Kc1 {[%emt 0:01:12]} Nxd3+ {[%emt 0:03:22]} 27. Rxd3 {[%emt 0:00:18]} Ra1+ {[%emt 0:00:17]} 28. Kc2 {[%emt 0:00:10]} cxb2 {[%emt 0:01:24] Gewichteter Fehlerwert: Weiß=0.88/Schwarz=0.04 (makellos) .  Fehler:       	Weiß=4     	---        Ungenau:       	Weiß=3     	Schwarz=1     OK:         	Weiß=5     	Schwarz=6     Bester:       	---       	Schwarz=1     Stark:        	---       	Schwarz=1} 0-1

[Event "WSTCC-65 2024"]
[Site "Krakow"]
[Date "2024.07.02"]
[Round "1.15"]
[White "McMahon, Frank"]
[Black "Pietrzak, Janusz"]
[Result "1/2-1/2"]
[ECO "B50"]
[WhiteElo "1818"]
[BlackElo "1919"]
[Annotator "NA RC"]
[PlyCount "76"]
[EventDate "2024.07.01"]
[EventType "team-tourn"]
[EventCountry "POL"]
[SourceTitle "playchess.com"]
[Source "ChessBase"]
[SourceQuality "1"]
[TimeControl "40/5400+30:1800+30"]

1. e4 {[%emt 0:00:03]} c5 {[%emt 0:00:21]} 2. Nf3 {[%emt 0:00:07]} d6 {[%emt 0:00:24]} 3. d4 {[%emt 0:00:09]} cxd4 {[%emt 0:00:05]} 4. c3 {[%emt 0:00:13]} dxc3 {[%emt 0:03:33]} 5. Nxc3 {[%emt 0:00:10]} Nc6 {[%emt 0:00:11]} 6. Bc4 {[%emt 0:01:41]} e6 {[%emt 0:01:38]} 7. O-O {[%emt 0:00:41]} Be7 {[%emt 0:00:22]} 8. Qe2 {[%emt 0:00:26]} Nf6 {[%emt 0:01:48]} 9. Rd1 {[%emt 0:01:27]} Bd7 {[%emt 0:10:24]} 10. e5 {[%emt 0:05:31]} dxe5 {[%emt 0:07:59]} 11. Nxe5 {[%emt 0:01:13]} Nxe5 {[%emt 0:00:50]} 12. Qxe5 {[%emt 0:00:12]} Rc8 {[%emt 0:07:28]} 13. Bb5 {[%emt 0:17:55]} Qc7 {[%emt 0:15:36]} 14. Bxd7+ {[%emt 0:02:35]} Nxd7 {[%emt 0:00:07]} 15. Qxg7 {[%emt 0:10:10]} Bf6 {[%emt 0:00:42]} 16. Qg3 {[%emt 0:00:56]} Qxg3 {[%emt 0:08:40]} 17. hxg3 {[%emt 0:00:12]} Bxc3 {[%emt 0:00:28]} 18. bxc3 {[%emt 0:00:11]} Rg8 {[%emt 0:01:27]} 19. Bb2 {[%emt 0:02:44]} Nb6 {[%emt 0:01:13]} 20. Rd4 {[%emt 0:01:16]} Nc4 {[%emt 0:01:20]} 21. Bc1 {[%emt 0:01:24]} Rg7 {[%emt 0:06:06]} 22. Rb1 {[%emt 0:03:05]} f6 {[%emt 0:00:11]} 23. Rb4 {[%emt 0:06:44]} Rgc7 {[%emt 0:00:09]} 24. Rh4 {[%emt 0:02:37]} b6 {[%emt 0:01:12]} 25. Rh6 {[%emt 0:03:32]} Rf7 {[%emt 0:01:20]} 26. Rh4 {[%emt 0:06:54]} Ne5 {[%emt 0:01:13]} 27. Bd2 {[%emt 0:00:56]} Rd7 {[%emt 0:04:32]} 28. Rbd4 {[%emt 0:01:57]} Rcd8 {[%emt 0:00:58]} 29. Be3 {[%emt 0:01:55]} Nc6 {[%emt 0:00:45]} 30. Rc4 {[%emt 0:05:25]} Na5 {[%emt 0:03:32]} 31. Rcf4 {[%emt 0:03:07]} Rf7 {[%emt 0:00:58]} 32. Rh6 {[%emt 0:01:56]} Ke7 {[%emt 0:01:12]} 33. Kh2 {[%emt 0:00:31]} Nc6 {[%emt 0:02:56]} 34. Bc1 {[%emt 0:01:23]} e5 {[%emt 0:00:42]} 35. Rfh4 {[%emt 0:01:51]} Rh8 {[%emt 0:00:38]} 36. Ba3+ {[%emt 0:00:53]} Ke6 {[%emt 0:00:12]} 37. g4 {[%emt 0:00:42]} Rg7 {[%emt 0:03:04]} 38. Bc1 {[%emt 0:02:09]} Ne7 1/2-1/2